[Event "RUS-ch Blitz 2021"]
[Site "Sochi"]
[Date "2021.10.11"]
[Round "4.10"]
[White "Triapishko, Alexandr"]
[Black "Sakaev, Konstantin"]
[Result "0-1"]
[ECO "D02"]
[WhiteElo "2506"]
[BlackElo "2603"]
[Annotator "ChessBase"]
[PlyCount "128"]
[EventDate "2021.10.11"]
[EventType "blitz"]
[EventCountry "RUS"]
[SourceTitle "playchess.com"]
[Source "ChessBase"]
[SourceQuality "1"]
[TimeControl "180+2"]

1. Nf3 {[%emt 0:00:00]} d5 {[%emt 0:00:07]} 2. g3 {[%emt 0:00:02]} g6 {[%emt 0:
00:00]} 3. d4 {[%emt 0:00:09]} Bg7 {[%emt 0:00:00]} 4. Bg2 {[%emt 0:00:00]} c6
{[%emt 0:00:00]} 5. O-O {[%emt 0:00:02]} Nf6 {[%emt 0:00:02]} 6. c3 {[%emt 0:
00:07]} O-O {[%emt 0:00:01]} 7. Nbd2 {[%emt 0:00:02]} Bf5 {[%emt 0:00:10]} 8.
Nh4 {[%emt 0:00:02]} Be6 {[%emt 0:00:05]} 9. e4 {[%emt 0:00:14]} dxe4 {[%emt 0:
00:01]} 10. Nxe4 {[%emt 0:00:04]} Nxe4 {[%emt 0:00:03]} 11. Bxe4 {[%emt 0:00:
01]} Bd5 {[%emt 0:00:07]} 12. Qe2 {[%emt 0:00:11]} Bxe4 {[%emt 0:00:00]} 13.
Qxe4 {[%emt 0:00:02]} Nd7 {[%emt 0:00:09]} 14. Nf3 {[%emt 0:00:09]} e6 {
[%emt 0:00:19]} 15. Re1 {[%emt 0:00:06]} Qb6 {[%emt 0:00:00]} 16. Qh4 {[%emt 0:
00:27]} Rfe8 {[%emt 0:00:11]} 17. b3 {[%emt 0:00:41]} c5 {[%emt 0:00:05]} 18.
Bh6 {[%emt 0:00:15]} cxd4 {[%emt 0:00:08]} 19. Bxg7 {[%emt 0:00:02]} Kxg7 {
[%emt 0:00:00]} 20. Qxd4+ {[%emt 0:00:13]} Qxd4 {[%emt 0:00:00]} 21. Nxd4 {
[%emt 0:00:00]} Red8 {[%emt 0:00:10]} 22. c4 {[%emt 0:00:04]} Nc5 {[%emt 0:00:
06]} 23. Rad1 {[%emt 0:00:00]} a5 {[%emt 0:00:06]} 24. Kg2 {[%emt 0:00:05]} Kf6
{[%emt 0:00:00]} 25. Nb5 {[%emt 0:00:20]} Nd3 {[%emt 0:00:07]} 26. Rf1 {
[%emt 0:00:01]} Rd7 {[%emt 0:00:13]} 27. Kf3 {[%emt 0:00:11]} Rad8 {[%emt 0:00:
05]} 28. Ke2 {[%emt 0:00:06]} Ke7 {[%emt 0:00:15]} 29. Nc3 {[%emt 0:00:12]} f5
{[%emt 0:00:11]} 30. Na4 {[%emt 0:00:04]} Rd4 {[%emt 0:00:05]} 31. Nc3 {
[%emt 0:00:05]} Kf6 {[%emt 0:00:05]} 32. Ke3 {[%emt 0:00:06]} R4d7 {[%emt 0:00:
19]} 33. Ke2 {[%emt 0:00:00]} g5 {[%emt 0:00:02]} 34. h3 {[%emt 0:00:04]} h5 {
[%emt 0:00:02]} 35. Na4 {[%emt 0:00:03]} h4 {[%emt 0:00:00]} 36. Nc3 {[%emt 0:
00:02]} hxg3 {[%emt 0:00:05]} 37. fxg3 {[%emt 0:00:00]} Ke5 {[%emt 0:00:10]}
38. Ke3 {[%emt 0:00:00]} Nb4 {[%emt 0:00:01]} 39. Rxd7 {[%emt 0:00:02]} Rxd7 {
[%emt 0:00:02]} 40. Ke2 {[%emt 0:00:06]} Nc2 {[%emt 0:00:06]} 41. Nb5 {[%emt 0:
00:00]} Nb4 {[%emt 0:00:02]} 42. Nc3 {[%emt 0:00:02]} Rh7 {[%emt 0:00:01]} 43.
Rh1 {[%emt 0:00:03]} Nc6 {[%emt 0:00:03]} 44. Kd3 {[%emt 0:00:03]} Kf6 {
[%emt 0:00:05]} 45. Ke3 {[%emt 0:00:00]} e5 {[%emt 0:00:00]} 46. Nd5+ {[%emt 0:
00:03]} Ke6 {[%emt 0:00:00]} 47. a3 {[%emt 0:00:01]} Nd4 {[%emt 0:00:05]} 48.
b4 {[%emt 0:00:00]} Nc2+ {[%emt 0:00:01]} 49. Kd3 {[%emt 0:00:00]} Nxa3 {
[%emt 0:00:09]} 50. bxa5 {[%emt 0:00:00]} e4+ {[%emt 0:00:01]} 51. Kc3 {
[%emt 0:00:04]} Rd7 {[%emt 0:00:10]} 52. h4 {[%emt 0:00:05]} Nxc4 {[%emt 0:00:
04]} 53. Kxc4 {[%emt 0:00:03]} Rxd5 {[%emt 0:00:00]} 54. hxg5 {[%emt 0:00:00]}
Rxa5 {[%emt 0:00:02]} 55. Rh6+ {[%emt 0:00:03]} Ke5 {[%emt 0:00:03]} 56. Rh7 {
[%emt 0:00:02]} Ra3 {[%emt 0:00:09]} 57. Re7+ {[%emt 0:00:02]} Kd6 {[%emt 0:00:
01]} 58. Rf7 {[%emt 0:00:03]} Ke6 {[%emt 0:00:00]} 59. Rf6+ {[%emt 0:00:03]}
Ke5 {[%emt 0:00:00]} 60. g4 {[%emt 0:00:00]} fxg4 {[%emt 0:00:02]} 61. Rf8 {
[%emt 0:00:04]} Ra6 {[%emt 0:00:02]} 62. Re8+ {[%emt 0:00:02]} Re6 {[%emt 0:00:
01]} 63. Rg8 {[%emt 0:00:02]} Rc6+ {[%emt 0:00:01]} 64. Kb5 {[%emt 0:00:01]}
Kf5 {[%emt 0:00:00]} 0-1

[Event "RUS-ch Blitz 2021"]
[Site "Sochi"]
[Date "2021.10.11"]
[Round "4.12"]
[White "Kokarev, Dmitry"]
[Black "Moiseenko, Vadim"]
[Result "0-1"]
[ECO "C70"]
[WhiteElo "2579"]
[BlackElo "2542"]
[Annotator "ChessBase"]
[PlyCount "64"]
[EventDate "2021.10.11"]
[EventType "blitz"]
[EventCountry "RUS"]
[SourceTitle "playchess.com"]
[Source "ChessBase"]
[SourceQuality "1"]
[TimeControl "180+2"]

1. e4 {[%emt 0:00:05]} e5 {[%emt 0:00:00]} 2. Nf3 {[%emt 0:00:05]} Nc6 {
[%emt 0:00:01]} 3. Bb5 {[%emt 0:00:00]} a6 {[%emt 0:00:00]} 4. Ba4 {[%emt 0:00:
00]} b5 {[%emt 0:00:14]} 5. Bb3 {[%emt 0:00:00]} Na5 {[%emt 0:00:00]} 6. O-O {
[%emt 0:00:07]} d6 {[%emt 0:00:00]} 7. d4 {[%emt 0:00:00]} exd4 {[%emt 0:00:00]
} 8. Nxd4 {[%emt 0:00:05]} Bb7 {[%emt 0:00:00]} 9. Bd2 {[%emt 0:00:00]} Nxb3 {
[%emt 0:00:04]} 10. Nxb3 {[%emt 0:00:01]} Rc8 {[%emt 0:00:01]} 11. a4 {[%emt 0:
00:08]} Nf6 {[%emt 0:00:00]} 12. f3 {[%emt 0:00:06]} Be7 {[%emt 0:00:11]} 13.
axb5 {[%emt 0:00:05]} axb5 {[%emt 0:00:00]} 14. Nd4 {[%emt 0:00:06]} O-O {
[%emt 0:00:52]} 15. Nxb5 {[%emt 0:00:04]} d5 {[%emt 0:00:08]} 16. e5 {[%emt 0:
00:13]} Nd7 {[%emt 0:00:03]} 17. f4 {[%emt 0:00:12]} d4 {[%emt 0:00:01]} 18.
Ba5 {[%emt 0:00:24]} Nxe5 {[%emt 0:00:14]} 19. Qxd4 {[%emt 0:00:07]} Qxd4+ {
[%emt 0:00:21]} 20. Nxd4 {[%emt 0:00:02]} Bc5 {[%emt 0:00:00]} 21. c3 {[%emt 0:
00:30]} Nc6 {[%emt 0:00:01]} 22. Kh1 {[%emt 0:00:06]} Rfe8 {[%emt 0:00:14]} 23.
Nf3 {[%emt 0:00:33]} Ba6 {[%emt 0:00:23]} 24. Rd1 {[%emt 0:00:02]} Be2 {
[%emt 0:00:04]} 25. Rd5 {[%emt 0:00:07]} Bxf3 {[%emt 0:00:09]} 26. gxf3 {
[%emt 0:00:00]} Re1+ {[%emt 0:00:02]} 27. Kg2 {[%emt 0:00:00]} Rg1+ {[%emt 0:
00:00]} 28. Kh3 {[%emt 0:00:06]} Bd6 {[%emt 0:00:02]} 29. Bb4 {[%emt 0:00:00]}
Bxb4 {[%emt 0:00:21]} 30. cxb4 {[%emt 0:00:00]} Nxb4 {[%emt 0:00:03]} 31. Rc5 {
[%emt 0:00:00]} Nd3 {[%emt 0:00:05]} 32. Rxc7 {[%emt 0:00:09]} Nxf4+ {[%emt 0:
00:00]} 0-1

[Event "RUS-ch Blitz 2021"]
[Site "Sochi"]
[Date "2021.10.11"]
[Round "4.13"]
[White "Pridorozhni, Aleksei"]
[Black "Belozerov, Andrei"]
[Result "1-0"]
[ECO "B23"]
[WhiteElo "2564"]
[BlackElo "2476"]
[Annotator "ChessBase"]
[PlyCount "79"]
[EventDate "2021.10.11"]
[EventType "blitz"]
[EventCountry "RUS"]
[SourceTitle "playchess.com"]
[Source "ChessBase"]
[SourceQuality "1"]
[TimeControl "180+2"]

1. e4 {[%emt 0:00:00]} c5 {[%emt 0:00:03]} 2. Nc3 {[%emt 0:00:03]} d6 {[%emt 0:
00:07]} 3. f4 {[%emt 0:00:00]} g6 {[%emt 0:00:07]} 4. d4 {[%emt 0:00:02]} cxd4
{[%emt 0:00:11]} 5. Qxd4 {[%emt 0:00:02]} Nf6 {[%emt 0:00:01]} 6. Nf3 {[%emt 0:
00:02]} Bg7 {[%emt 0:00:10]} 7. Bd3 {[%emt 0:00:08]} Nc6 {[%emt 0:00:10]} 8.
Qf2 {[%emt 0:00:00]} O-O {[%emt 0:00:42]} 9. h3 {[%emt 0:00:00]} Qb6 {[%emt 0:
00:07]} 10. Qxb6 {[%emt 0:00:13]} axb6 {[%emt 0:00:00]} 11. Be3 {[%emt 0:00:21]
} Nd7 {[%emt 0:00:04]} 12. Kd2 {[%emt 0:00:14]} Nc5 {[%emt 0:00:13]} 13. Rhe1 {
[%emt 0:00:48]} Be6 {[%emt 0:00:15]} 14. a3 {[%emt 0:00:07]} Rfc8 {[%emt 0:00:
06]} 15. Rab1 {[%emt 0:00:08]} Nxd3 {[%emt 0:00:00]} 16. cxd3 {[%emt 0:00:10]}
Ra6 {[%emt 0:01:03]} 17. Ne2 {[%emt 0:00:18]} Na5 {[%emt 0:00:04]} 18. Ned4 {
[%emt 0:00:06]} Ba2 {[%emt 0:00:05]} 19. Rbc1 {[%emt 0:00:03]} Raa8 {[%emt 0:
00:00]} 20. Rxc8+ {[%emt 0:00:04]} Rxc8 {[%emt 0:00:03]} 21. Rc1 {[%emt 0:00:
03]} Rxc1 {[%emt 0:00:01]} 22. Kxc1 {[%emt 0:00:00]} Bb3 {[%emt 0:00:10]} 23.
Nxb3 {[%emt 0:00:12]} Nxb3+ {[%emt 0:00:00]} 24. Kc2 {[%emt 0:00:07]} Nc5 {
[%emt 0:00:00]} 25. b4 {[%emt 0:00:02]} Nd7 {[%emt 0:00:07]} 26. a4 {[%emt 0:
00:00]} Kf8 {[%emt 0:00:03]} 27. Kb3 {[%emt 0:00:00]} Ke8 {[%emt 0:00:02]} 28.
Kc4 {[%emt 0:00:02]} Kd8 {[%emt 0:00:00]} 29. Kb5 {[%emt 0:00:05]} Kc7 {
[%emt 0:00:00]} 30. Nd2 {[%emt 0:00:03]} Bc3 {[%emt 0:00:06]} 31. Nc4 {[%emt 0:
00:03]} Be1 {[%emt 0:00:00]} 32. Nxb6 {[%emt 0:00:03]} Nxb6 {[%emt 0:00:00]}
33. Bxb6+ {[%emt 0:00:02]} Kd7 {[%emt 0:00:00]} 34. Be3 {[%emt 0:00:04]} f5 {
[%emt 0:00:05]} 35. Kc4 {[%emt 0:00:03]} e6 {[%emt 0:00:03]} 36. b5 {[%emt 0:
00:05]} Ba5 {[%emt 0:00:03]} 37. Kb3 {[%emt 0:00:06]} h5 {[%emt 0:00:00]} 38.
Kc2 {[%emt 0:00:00]} d5 {[%emt 0:00:03]} 39. e5 {[%emt 0:00:03]} b6 {[%emt 0:
00:03]} 40. Bd2 {[%emt 0:00:05]} 1-0

[Event "RUS-ch Blitz 2021"]
[Site "Sochi"]
[Date "2021.10.11"]
[Round "4.14"]
[White "Zakaryan, David"]
[Black "Antipov, Mikhail Al."]
[Result "0-1"]
[ECO "D90"]
[WhiteElo "2283"]
[BlackElo "2619"]
[Annotator "ChessBase"]
[PlyCount "66"]
[EventDate "2021.10.11"]
[EventType "blitz"]
[EventCountry "RUS"]
[SourceTitle "playchess.com"]
[Source "ChessBase"]
[SourceQuality "1"]
[TimeControl "180+2"]

1. d4 {[%emt 0:00:00]} Nf6 {[%emt 0:00:00]} 2. c4 {[%emt 0:00:06]} g6 {[%emt 0:
00:02]} 3. Nc3 {[%emt 0:00:00]} d5 {[%emt 0:00:00]} 4. Nf3 {[%emt 0:00:04]} Bg7
{[%emt 0:00:00]} 5. h4 {[%emt 0:00:00]} dxc4 {[%emt 0:00:00]} 6. e4 {[%emt 0:
00:05]} c5 {[%emt 0:00:06]} 7. d5 {[%emt 0:00:00]} b5 {[%emt 0:00:00]} 8. h5 {
[%emt 0:00:00]} O-O {[%emt 0:00:00]} 9. hxg6 {[%emt 0:00:02]} fxg6 {[%emt 0:00:
03]} 10. e5 {[%emt 0:00:15]} Ng4 {[%emt 0:00:01]} 11. d6 {[%emt 0:00:00]} e6 {
[%emt 0:00:00]} 12. Rxh7 {[%emt 0:00:35]} Rf5 {[%emt 0:00:03]} 13. Rh3 {
[%emt 0:00:21]} Nc6 {[%emt 0:00:11]} 14. Nxb5 {[%emt 0:00:13]} Rb8 {[%emt 0:00:
23]} 15. Nc3 {[%emt 0:00:13]} Ngxe5 {[%emt 0:00:25]} 16. Nh4 {[%emt 0:00:14]}
Rh5 {[%emt 0:00:39]} 17. Nxg6 {[%emt 0:00:05]} Rxh3 {[%emt 0:00:03]} 18. Nxe5 {
[%emt 0:00:11]} Nxe5 {[%emt 0:00:05]} 19. gxh3 {[%emt 0:00:02]} Bb7 {[%emt 0:
00:01]} 20. Be2 {[%emt 0:00:07]} Qh4 {[%emt 0:00:00]} 21. Bg4 {[%emt 0:00:32]}
Nd3+ {[%emt 0:00:09]} 22. Kd2 {[%emt 0:00:05]} Qxf2+ {[%emt 0:01:27]} 23. Qe2 {
[%emt 0:00:00]} Qd4 {[%emt 0:00:06]} 24. Bxe6+ {[%emt 0:00:10]} Kf8 {[%emt 0:
00:04]} 25. Kc2 {[%emt 0:00:08]} Nb4+ {[%emt 0:00:02]} 26. Kb1 {[%emt 0:00:00]}
Qxd6 {[%emt 0:00:02]} 27. Bxc4 {[%emt 0:00:07]} Qg6+ {[%emt 0:00:00]} 28. Bd3 {
[%emt 0:00:05]} Nxd3 {[%emt 0:00:00]} 29. Qc2 {[%emt 0:00:00]} Bc6 {[%emt 0:00:
06]} 30. a4 {[%emt 0:00:08]} Bxc3 {[%emt 0:00:02]} 31. Ra3 {[%emt 0:00:00]} Bd4
{[%emt 0:00:01]} 32. Rxd3 {[%emt 0:00:05]} Be4 {[%emt 0:00:00]} 33. Rf3+ {
[%emt 0:00:00]} Kg7 {[%emt 0:00:02]} 0-1

[Event "RUS-ch Blitz 2021"]
[Site "Sochi"]
[Date "2021.10.11"]
[Round "4.15"]
[White "Lobanov, Sergei"]
[Black "Kezin, Roman"]
[Result "1-0"]
[ECO "B48"]
[WhiteElo "2501"]
[BlackElo "2492"]
[Annotator "ChessBase"]
[PlyCount "77"]
[EventDate "2021.10.11"]
[EventType "blitz"]
[EventCountry "RUS"]
[SourceTitle "playchess.com"]
[Source "ChessBase"]
[SourceQuality "1"]
[TimeControl "180+2"]

1. e4 {[%emt 0:00:00]} c5 {[%emt 0:00:00]} 2. Nf3 {[%emt 0:00:04]} e6 {[%emt 0:
00:02]} 3. d4 {[%emt 0:00:00]} cxd4 {[%emt 0:00:00]} 4. Nxd4 {[%emt 0:00:00]}
Nc6 {[%emt 0:00:11]} 5. Nc3 {[%emt 0:00:01]} Qc7 {[%emt 0:00:00]} 6. Be3 {
[%emt 0:00:00]} a6 {[%emt 0:00:00]} 7. Qf3 {[%emt 0:00:11]} Ne5 {[%emt 0:00:00]
} 8. Qg3 {[%emt 0:00:00]} h5 {[%emt 0:00:00]} 9. Bf4 {[%emt 0:00:07]} d6 {
[%emt 0:00:00]} 10. Bg5 {[%emt 0:00:02]} b5 {[%emt 0:00:00]} 11. a3 {[%emt 0:
00:14]} Ng6 {[%emt 0:00:27]} 12. h4 {[%emt 0:00:24]} Nf6 {[%emt 0:00:21]} 13.
O-O-O {[%emt 0:00:12]} Rb8 {[%emt 0:00:45]} 14. f4 {[%emt 0:00:46]} b4 {
[%emt 0:00:05]} 15. axb4 {[%emt 0:00:01]} Rxb4 {[%emt 0:00:00]} 16. f5 {
[%emt 0:00:37]} Ne5 {[%emt 0:00:03]} 17. fxe6 {[%emt 0:00:00]} fxe6 {[%emt 0:
00:05]} 18. Nf3 {[%emt 0:00:17]} Be7 {[%emt 0:00:43]} 19. Nxe5 {[%emt 0:00:18]}
dxe5 {[%emt 0:00:00]} 20. Be2 {[%emt 0:00:04]} O-O {[%emt 0:00:15]} 21. Rhf1 {
[%emt 0:00:04]} Bb7 {[%emt 0:00:16]} 22. Bxf6 {[%emt 0:00:01]} Bxf6 {[%emt 0:
00:09]} 23. Bxh5 {[%emt 0:00:02]} Bxe4 {[%emt 0:00:05]} 24. Nxe4 {[%emt 0:00:
11]} Rxe4 {[%emt 0:00:00]} 25. Qg6 {[%emt 0:00:11]} Rf4 {[%emt 0:00:09]} 26.
Bf3 {[%emt 0:00:02]} e4 {[%emt 0:00:15]} 27. Bxe4 {[%emt 0:00:00]} Rxh4 {
[%emt 0:00:03]} 28. Rh1 {[%emt 0:00:05]} Qe5 {[%emt 0:00:02]} 29. Rxh4 {
[%emt 0:00:04]} Qxb2+ {[%emt 0:00:00]} 30. Kd2 {[%emt 0:00:00]} Qd4+ {[%emt 0:
00:03]} 31. Ke2 {[%emt 0:00:00]} Qc4+ {[%emt 0:00:02]} 32. Rd3 {[%emt 0:00:06]}
Bxh4 {[%emt 0:00:02]} 33. Qh7+ {[%emt 0:00:02]} Kf7 {[%emt 0:00:00]} 34. Qxh4 {
[%emt 0:00:00]} Qb5 {[%emt 0:00:03]} 35. Ke1 {[%emt 0:00:04]} Rc8 {[%emt 0:00:
04]} 36. Rf3+ {[%emt 0:00:00]} Ke8 {[%emt 0:00:02]} 37. Qh8+ {[%emt 0:00:00]}
Kd7 {[%emt 0:00:02]} 38. Qxg7+ {[%emt 0:00:01]} Kd6 {[%emt 0:00:00]} 39. Rd3+ {
[%emt 0:00:01]} 1-0

[Event "RUS-ch Blitz 2021"]
[Site "Sochi"]
[Date "2021.10.11"]
[Round "4.16"]
[White "Shubin, Kirill"]
[Black "Popov, Valerij"]
[Result "1-0"]
[ECO "B28"]
[WhiteElo "2463"]
[BlackElo "2537"]
[Annotator "ChessBase"]
[PlyCount "60"]
[EventDate "2021.10.11"]
[EventType "blitz"]
[EventCountry "RUS"]
[SourceTitle "playchess.com"]
[Source "ChessBase"]
[SourceQuality "1"]
[TimeControl "180+2"]

1. e4 {[%emt 0:00:00]} c5 {[%emt 0:00:00]} 2. Nf3 {[%emt 0:00:04]} a6 {[%emt 0:
00:00]} 3. g3 {[%emt 0:00:00]} b5 {[%emt 0:00:13]} 4. Bg2 {[%emt 0:00:00]} Bb7
{[%emt 0:00:00]} 5. Qe2 {[%emt 0:00:00]} g6 {[%emt 0:00:02]} 6. O-O {[%emt 0:
00:09]} Bg7 {[%emt 0:00:00]} 7. c3 {[%emt 0:00:04]} Nc6 {[%emt 0:00:11]} 8. d3
{[%emt 0:00:23]} d6 {[%emt 0:00:04]} 9. Be3 {[%emt 0:00:07]} e5 {[%emt 0:00:05]
} 10. Rd1 {[%emt 0:00:10]} Nf6 {[%emt 0:00:19]} 11. d4 {[%emt 0:00:16]} cxd4 {
[%emt 0:00:34]} 12. cxd4 {[%emt 0:00:00]} Qe7 {[%emt 0:00:03]} 13. dxe5 {
[%emt 0:00:22]} dxe5 {[%emt 0:00:00]} 14. Nc3 {[%emt 0:00:02]} O-O {[%emt 0:00:
33]} 15. Nd5 {[%emt 0:00:04]} Nxd5 {[%emt 0:00:07]} 16. exd5 {[%emt 0:00:00]}
Na5 {[%emt 0:00:15]} 17. d6 {[%emt 0:00:41]} Qd7 {[%emt 0:00:05]} 18. Bb6 {
[%emt 0:00:23]} Nc4 {[%emt 0:00:08]} 19. Bc7 {[%emt 0:00:00]} e4 {[%emt 0:00:
13]} 20. Nd4 {[%emt 0:00:17]} Nxd6 {[%emt 0:00:07]} 21. Bxd6 {[%emt 0:00:11]}
Qxd6 {[%emt 0:00:00]} 22. Nxb5 {[%emt 0:00:00]} Qb4 {[%emt 0:00:14]} 23. Nd6 {
[%emt 0:00:07]} Rab8 {[%emt 0:00:10]} 24. Nxb7 {[%emt 0:00:04]} Rxb7 {[%emt 0:
00:00]} 25. Qxe4 {[%emt 0:00:02]} Qxe4 {[%emt 0:00:05]} 26. Bxe4 {[%emt 0:00:
03]} Rxb2 {[%emt 0:00:02]} 27. Bd5 {[%emt 0:00:13]} Re8 {[%emt 0:00:21]} 28.
Bb3 {[%emt 0:00:00]} Re7 {[%emt 0:00:05]} 29. Rd8+ {[%emt 0:00:04]} Bf8 {
[%emt 0:00:00]} 30. Rc1 {[%emt 0:00:00]} Kg7 {[%emt 0:00:04]} 1-0

[Event "RUS-ch Blitz 2021"]
[Site "Sochi"]
[Date "2021.10.11"]
[Round "4.17"]
[White "Demidov, Mikhail"]
[Black "Skvortsov, Andrei"]
[Result "1-0"]
[ECO "D02"]
[WhiteElo "2551"]
[BlackElo "2138"]
[Annotator "ChessBase"]
[PlyCount "63"]
[EventDate "2021.10.11"]
[EventType "blitz"]
[EventCountry "RUS"]
[SourceTitle "playchess.com"]
[Source "ChessBase"]
[SourceQuality "1"]
[TimeControl "180+2"]

1. Nf3 {[%emt 0:00:00]} d5 {[%emt 0:00:03]} 2. g3 {[%emt 0:00:04]} Nc6 {
[%emt 0:00:00]} 3. d4 {[%emt 0:00:10]} Bf5 {[%emt 0:00:00]} 4. Bg2 {[%emt 0:00:
00]} e6 {[%emt 0:00:00]} 5. c3 {[%emt 0:00:12]} h6 {[%emt 0:00:13]} 6. Nbd2 {
[%emt 0:00:07]} Nf6 {[%emt 0:00:05]} 7. O-O {[%emt 0:00:00]} Be7 {[%emt 0:00:
01]} 8. Re1 {[%emt 0:00:03]} O-O {[%emt 0:00:04]} 9. b3 {[%emt 0:00:12]} a5 {
[%emt 0:00:00]} 10. a4 {[%emt 0:00:07]} Na7 {[%emt 0:00:09]} 11. Ne5 {[%emt 0:
00:08]} Nc8 {[%emt 0:00:00]} 12. f3 {[%emt 0:00:15]} c5 {[%emt 0:00:06]} 13. e3
{[%emt 0:00:09]} cxd4 {[%emt 0:00:12]} 14. exd4 {[%emt 0:00:00]} Nd6 {[%emt 0:
00:02]} 15. Ba3 {[%emt 0:00:12]} Rc8 {[%emt 0:00:04]} 16. Bb2 {[%emt 0:00:31]}
Nd7 {[%emt 0:00:26]} 17. Kh1 {[%emt 0:00:13]} f6 {[%emt 0:00:12]} 18. Ng4 {
[%emt 0:00:02]} Nf7 {[%emt 0:00:11]} 19. Ne3 {[%emt 0:00:06]} Bh7 {[%emt 0:00:
00]} 20. Rc1 {[%emt 0:00:03]} Re8 {[%emt 0:00:17]} 21. c4 {[%emt 0:00:01]} dxc4
{[%emt 0:00:02]} 22. Ndxc4 {[%emt 0:00:03]} Nd6 {[%emt 0:00:08]} 23. f4 {
[%emt 0:00:08]} b6 {[%emt 0:00:11]} 24. d5 {[%emt 0:00:06]} Ne4 {[%emt 0:00:53]
} 25. Ng4 {[%emt 0:00:26]} Ndc5 {[%emt 0:00:06]} 26. dxe6 {[%emt 0:00:17]} Qxd1
{[%emt 0:00:00]} 27. Rcxd1 {[%emt 0:00:00]} h5 {[%emt 0:00:05]} 28. Nxb6 {
[%emt 0:00:04]} hxg4 {[%emt 0:00:05]} 29. Nxc8 {[%emt 0:00:00]} Nf2+ {[%emt 0:
00:12]} 30. Kg1 {[%emt 0:00:04]} Nxd1 {[%emt 0:00:00]} 31. Nxe7+ {[%emt 0:00:
00]} Kf8 {[%emt 0:00:00]} 32. Rxd1 {[%emt 0:00:04]} 1-0

[Event "RUS-ch Blitz 2021"]
[Site "Sochi"]
[Date "2021.10.11"]
[Round "4.18"]
[White "Zubritskiy, Artyom"]
[Black "Babanin, Gleb"]
[Result "0-1"]
[ECO "A13"]
[WhiteElo "2442"]
[BlackElo "2094"]
[Annotator "ChessBase"]
[PlyCount "105"]
[EventDate "2021.10.11"]
[EventType "blitz"]
[EventCountry "RUS"]
[SourceTitle "playchess.com"]
[Source "ChessBase"]
[SourceQuality "1"]
[TimeControl "180+2"]

1. c4 {[%emt 0:00:00]} e6 {[%emt 0:00:00]} 2. Nf3 {[%emt 0:00:04]} d5 {[%emt 0:
00:01]} 3. b3 {[%emt 0:00:00]} Nf6 {[%emt 0:00:00]} 4. Bb2 {[%emt 0:00:12]} Be7
{[%emt 0:00:05]} 5. e3 {[%emt 0:00:00]} b6 {[%emt 0:00:06]} 6. d4 {[%emt 0:00:
01]} Bb7 {[%emt 0:00:00]} 7. Bd3 {[%emt 0:00:00]} Nbd7 {[%emt 0:00:05]} 8. Nbd2
{[%emt 0:00:04]} Ne4 {[%emt 0:00:06]} 9. O-O {[%emt 0:00:09]} O-O {[%emt 0:00:
04]} 10. Qc2 {[%emt 0:00:08]} f5 {[%emt 0:00:03]} 11. Rac1 {[%emt 0:00:06]} Bd6
{[%emt 0:00:08]} 12. Rfe1 {[%emt 0:01:31]} Rc8 {[%emt 0:00:02]} 13. Nf1 {
[%emt 0:00:02]} h5 {[%emt 0:00:14]} 14. Ne5 {[%emt 0:00:27]} Nxe5 {[%emt 0:00:
35]} 15. dxe5 {[%emt 0:00:03]} Bb4 {[%emt 0:00:00]} 16. Red1 {[%emt 0:00:00]}
Qe7 {[%emt 0:00:05]} 17. cxd5 {[%emt 0:00:16]} exd5 {[%emt 0:00:05]} 18. f3 {
[%emt 0:00:00]} Ng5 {[%emt 0:01:17]} 19. Bxf5 {[%emt 0:00:05]} Rcd8 {[%emt 0:
00:07]} 20. Qxc7 {[%emt 0:00:13]} Nxf3+ {[%emt 0:00:21]} 21. Kh1 {[%emt 0:00:
14]} Rxf5 {[%emt 0:00:10]} 22. Qxe7 {[%emt 0:00:00]} Bxe7 {[%emt 0:00:00]} 23.
Rc7 {[%emt 0:00:03]} Bc5 {[%emt 0:00:06]} 24. Rxb7 {[%emt 0:00:00]} Nxe5 {
[%emt 0:00:01]} 25. Ng3 {[%emt 0:00:05]} Rg5 {[%emt 0:00:04]} 26. Rxa7 {
[%emt 0:00:09]} Ng4 {[%emt 0:00:00]} 27. Re1 {[%emt 0:00:02]} Nf2+ {[%emt 0:00:
00]} 28. Kg1 {[%emt 0:00:00]} Nd3 {[%emt 0:00:00]} 29. Re2 {[%emt 0:00:04]}
Nxb2 {[%emt 0:00:09]} 30. Rxb2 {[%emt 0:00:00]} Bxe3+ {[%emt 0:00:00]} 31. Kh1
{[%emt 0:00:00]} h4 {[%emt 0:00:03]} 32. Nf1 {[%emt 0:00:00]} Bc5 {[%emt 0:00:
01]} 33. Rd2 {[%emt 0:00:08]} Rf5 {[%emt 0:00:00]} 34. Rd1 {[%emt 0:00:00]}
Rdf8 {[%emt 0:00:03]} 35. Nd2 {[%emt 0:00:02]} Bb4 {[%emt 0:00:05]} 36. Nf3 {
[%emt 0:00:03]} h3 {[%emt 0:00:00]} 37. Rd3 {[%emt 0:00:02]} hxg2+ {[%emt 0:00:
00]} 38. Kxg2 {[%emt 0:00:00]} R8f6 {[%emt 0:00:02]} 39. Rd7 {[%emt 0:00:05]}
Rg6+ {[%emt 0:00:00]} 40. Kf1 {[%emt 0:00:00]} Bc5 {[%emt 0:00:07]} 41. R7xd5 {
[%emt 0:00:01]} Rg1+ {[%emt 0:00:01]} 42. Ke2 {[%emt 0:00:02]} Rg2+ {[%emt 0:
00:02]} 43. Kd1 {[%emt 0:00:00]} Rxd5 {[%emt 0:00:03]} 44. Rxd5 {[%emt 0:00:03]
} Rxa2 {[%emt 0:00:03]} 45. Ng5 {[%emt 0:00:00]} Rxh2 {[%emt 0:00:04]} 46. Rd8+
{[%emt 0:00:03]} Bf8 {[%emt 0:00:00]} 47. Rb8 {[%emt 0:00:03]} Rh6 {[%emt 0:00:
00]} 48. Ke2 {[%emt 0:00:01]} Rg6 {[%emt 0:00:03]} 49. Ne4 {[%emt 0:00:03]} Re6
{[%emt 0:00:03]} 50. Kf3 {[%emt 0:00:00]} g6 {[%emt 0:00:03]} 51. b4 {[%emt 0:
00:05]} Kg7 {[%emt 0:00:03]} 52. Rb7+ {[%emt 0:00:02]} Be7 {[%emt 0:00:02]} 53.
Nc3 {[%emt 0:00:05]} 0-1